{"text_format":"1","workbook":"xlsx","n_sheets":2,"sheets":["JOKERs","Listas"],"not_rendered":{"charts":0,"images":14,"macros":1,"external_links":0,"defined_names":14,"comments":0,"pivot_tables":0},"unopened":[],"bounds":{"document_bytes":16777216,"sheet_cells":100000,"rows_first":2000,"rows_last":500,"rows_between":2000,"halvings":0,"cell_chars":16384,"cell_head_chars":4096},"cells_cut":0,"cells_raw":0,"read":"whole","date_system":"1900"}

{"sheet":"JOKERs","index":0,"n_rows":28,"n_cols":12,"rows_kept":28,"cut":false,"hidden":false,"merged":[[26,3,26,4],[26,5,26,6],[27,3,27,4],[27,5,27,6],[0,1,0,11],[17,9,17,11],[18,9,18,11],[15,8,15,9],[16,8,16,9],[12,8,12,11],[13,8,14,11],[2,4,10,11],[12,1,12,2],[12,3,12,4],[13,3,13,4],[14,3,14,4],[15,3,15,4],[20,3,20,4],[20,5,20,6],[19,3,19,4],[12,5,12,6],[16,3,16,4],[17,3,17,4],[18,3,18,4],[13,5,13,6],[14,5,14,6],[15,5,15,6],[16,5,16,6],[17,5,17,6],[18,5,18,6],[19,9,20,11],[19,8,20,8],[25,3,25,4],[25,5,25,6],[22,3,22,4],[22,5,22,6],[24,3,24,4],[24,5,24,6],[23,3,23,4],[23,5,23,6],[21,3,21,4],[21,5,21,6],[19,5,19,6]]}
[null,"Instrucciones para rellenar la declaración de Jokers del Gr. R5:\n1. Seleccionar vehículo: se introduce automáticamente su ficha de homologación y las opciones de esta homologación en relación al software utilizado y los Jokers homologados.\n2. Rellenar filas 6 a 11. Observaciones:\n       - Competición: seleccionar de la lista desplegable el rallye correspondiente.\n       - Nº FIA carrocería: solo si se dispone del mismo.\n       - Nº Pasaporte Técnico FIA: solo si se dispone del mismo.\n3. Definir Software usado y Jokers instalados en el vehículo.\n4. Introducir nombre del firmante.\n5. Firmar el documento: se debe introducir la firma escaneada del competidor/representante, piloto o copiloto.\n6. Entregar el documento: enviar a la dirección de correo electrónico del equipo técnico de rallyes o entregar al Delegado Técnico en las Verificaciones Técnicas Previas."]
[]
[null,"VEHÍCULO\nCAR",{"$f":"IF(Seleccion=1,\"Ford Fiesta R5\",IF(Seleccion=2,\"Citroën DS3 R5\",IF(Seleccion=3,\"Peugeot 208 T16 R5\",IF(Seleccion=4,\"Skoda Fabia R5\",IF(Seleccion=5,\"Hyundai i20 R5\",IF(Seleccion=6,\"Citroën C3 R5\",IF(Seleccion=7,\"VW Polo GTi R5\",IF(Seleccion=8,\"Proton Iriz R5\",IF(Seleccion=9,\"Skoda Fabia R5 EVO\",\"Ford Fiesta R5 MKII\")))))))))","v":"Skoda Fabia R5"},null,{"$f":"\"IMAG\"&VLOOKUP(Listas!$B$26,Listas!A2:C11,3)","v":"IMAG4"}]
[null,"FICHA HOMOLOGACIÓN\nHOMOLOGATION FORM",{"$f":"VLOOKUP(Listas!B26,Listas!A14:B23,2)","v":"A5760 - 01/01VR5"}]
[]
[null,"Competición\nCompetition","Seleccionar prueba S-CER, CERA o CERT"]
[null,"Nº Competidor\nCompetitor Nº","Introducir nº"]
[null,"Nombre competidor\nCompetitor name","Introducir nombre"]
[null,"Nº Chasis\nChassis Nº","Introducir nº chasis"]
[null,"Nº FIA Carrocería\nFIA Bodyshell Nº","Introducir nº carrocería FIA"]
[null,"Nº Pasaporte Técnico FIA\nFIA Technical Passport Nº","Introducir nº Pasaporte FIA"]
[]
[null,"Especificaciones\nSpecification",null,"Instalado\nFitted",null,"No instalado\nNot Fitted",null,null,"Declaración de conformidad\nDeclaration of conformity"]
[null,{"$f":"IF(VLOOKUP(Listas!$B$26,Listas!$M$2:$AZ$11,Listas!N14)=\"\",\"\",VLOOKUP(Listas!$B$26,Listas!$M$2:$AZ$11,Listas!N14))","v":"Software"},{"$f":"IF(VLOOKUP(Listas!$B$26,Listas!$M$2:$AZ$11,Listas!O14)=\"\",\"\",VLOOKUP(Listas!$B$26,Listas!$M$2:$AZ$11,Listas!O14))","v":"01/01 VR5: (MM12451_AVL051)"},null,null,null,null,null,{"$f":"\"El abajo firmante se hace responsable de los datos del vehículo nº \"&C7&\", que figuran en este documento, y declara conocer los reglamentos por los que se rige el mismo, los cuales deberá respetar.\nThe undersigned is responsible for vehicle data nº \"&C7&\" contained in this document and acknowledges the Regulations governing the referenced vehicle, which must be respected.\"","v":"El abajo firmante se hace responsable de los datos del vehículo nº Introducir nº, que figuran en este documento, y declara conocer los reglamentos por los que se rige el mismo, los cuales deberá respetar.\nThe undersigned is responsible for vehicle data nº Introducir nº contained in this document and acknowledges the Regulations governing the referenced vehicle, which must be respected."}]
[null,{"$f":"IF(VLOOKUP(Listas!$B$26,Listas!$M$2:$AZ$11,Listas!N15)=\"\",\"\",VLOOKUP(Listas!$B$26,Listas!$M$2:$AZ$11,Listas!N15))","v":"Software"},{"$f":"IF(VLOOKUP(Listas!$B$26,Listas!$M$2:$AZ$11,Listas!O15)=\"\",\"\",VLOOKUP(Listas!$B$26,Listas!$M$2:$AZ$11,Listas!O15))","v":"49/06 ERJ: Software (ECU:  MM12750_AVL090) (ELB: 1.3.0)"}]
[null,{"$f":"IF(VLOOKUP(Listas!$B$26,Listas!$M$2:$AZ$11,Listas!N16)=\"\",\"\",VLOOKUP(Listas!$B$26,Listas!$M$2:$AZ$11,Listas!N16))","v":"Joker #1"},{"$f":"IF(VLOOKUP(Listas!$B$26,Listas!$M$2:$AZ$11,Listas!O16)=\"\",\"\",VLOOKUP(Listas!$B$26,Listas!$M$2:$AZ$11,Listas!O16))","v":"13/01 ERJ: Crankshaft bearing caps (reliability)"},null,null,null,null,null,"Competidor/Representante\nCompetitor/Representative        ",null,"Piloto\nDriver","Copiloto\nCo-driver"]
[null,{"$f":"IF(VLOOKUP(Listas!$B$26,Listas!$M$2:$AZ$11,Listas!N17)=\"\",\"\",VLOOKUP(Listas!$B$26,Listas!$M$2:$AZ$11,Listas!N17))","v":"Joker #2"},{"$f":"IF(VLOOKUP(Listas!$B$26,Listas!$M$2:$AZ$11,Listas!O17)=\"\",\"\",VLOOKUP(Listas!$B$26,Listas!$M$2:$AZ$11,Listas!O17))","v":"19/02 ERJ: ECU: MM127210_AVL061 / ELB: 1.3.0"}]
[null,{"$f":"IF(VLOOKUP(Listas!$B$26,Listas!$M$2:$AZ$11,Listas!N18)=\"\",\"\",VLOOKUP(Listas!$B$26,Listas!$M$2:$AZ$11,Listas!N18))","v":"Joker #3"},{"$f":"IF(VLOOKUP(Listas!$B$26,Listas!$M$2:$AZ$11,Listas!O18)=\"\",\"\",VLOOKUP(Listas!$B$26,Listas!$M$2:$AZ$11,Listas!O18))","v":"32/03 ERJ: Engine support #1"},null,null,null,null,null,"Fecha\nDate",{"$f":"TODAY()","v":"2021-07-23"}]
[null,{"$f":"IF(VLOOKUP(Listas!$B$26,Listas!$M$2:$AZ$11,Listas!N19)=\"\",\"\",VLOOKUP(Listas!$B$26,Listas!$M$2:$AZ$11,Listas!N19))","v":"Joker #4"},{"$f":"IF(VLOOKUP(Listas!$B$26,Listas!$M$2:$AZ$11,Listas!O19)=\"\",\"\",VLOOKUP(Listas!$B$26,Listas!$M$2:$AZ$11,Listas!O19))","v":"33/04 ERJ: Front diff (reliability)"},null,null,null,null,null,"Nombre\nName","Introducir nombre del firmante"]
[null,{"$f":"IF(VLOOKUP(Listas!$B$26,Listas!$M$2:$AZ$11,Listas!N20)=\"\",\"\",VLOOKUP(Listas!$B$26,Listas!$M$2:$AZ$11,Listas!N20))","v":"Joker #5"},{"$f":"IF(VLOOKUP(Listas!$B$26,Listas!$M$2:$AZ$11,Listas!O20)=\"\",\"\",VLOOKUP(Listas!$B$26,Listas!$M$2:$AZ$11,Listas!O20))","v":"33/04 ERJ: Rear diff"},null,null,null,null,null,"Firma\nSignature","Introducir firma escaneada"]
[null,{"$f":"IF(VLOOKUP(Listas!$B$26,Listas!$M$2:$AZ$11,Listas!N21)=\"\",\"\",VLOOKUP(Listas!$B$26,Listas!$M$2:$AZ$11,Listas!N21))","v":"Joker #6"},{"$f":"IF(VLOOKUP(Listas!$B$26,Listas!$M$2:$AZ$11,Listas!O21)=\"\",\"\",VLOOKUP(Listas!$B$26,Listas!$M$2:$AZ$11,Listas!O21))","v":"47/05 ERJ: Removal of balancing shaft"}]
[null,{"$f":"IF(VLOOKUP(Listas!$B$26,Listas!$M$2:$AZ$11,Listas!N22)=\"\",\"\",VLOOKUP(Listas!$B$26,Listas!$M$2:$AZ$11,Listas!N22))","v":"Joker #7"},{"$f":"IF(VLOOKUP(Listas!$B$26,Listas!$M$2:$AZ$11,Listas!O22)=\"\",\"\",VLOOKUP(Listas!$B$26,Listas!$M$2:$AZ$11,Listas!O22))","v":"47/05 ERJ: Piston"}]
[null,{"$f":"IF(VLOOKUP(Listas!$B$26,Listas!$M$2:$AZ$11,Listas!N23)=\"\",\"\",VLOOKUP(Listas!$B$26,Listas!$M$2:$AZ$11,Listas!N23))","v":"Joker #8"},{"$f":"IF(VLOOKUP(Listas!$B$26,Listas!$M$2:$AZ$11,Listas!O23)=\"\",\"\",VLOOKUP(Listas!$B$26,Listas!$M$2:$AZ$11,Listas!O23))","v":"47/05 ERJ: Water pump drive system"}]
[null,{"$f":"IF(VLOOKUP(Listas!$B$26,Listas!$M$2:$AZ$11,Listas!N24)=\"\",\"\",VLOOKUP(Listas!$B$26,Listas!$M$2:$AZ$11,Listas!N24))","v":"Joker #9"},{"$f":"IF(VLOOKUP(Listas!$B$26,Listas!$M$2:$AZ$11,Listas!O24)=\"\",\"\",VLOOKUP(Listas!$B$26,Listas!$M$2:$AZ$11,Listas!O24))","v":"47/05 ERJ: Oil pump"}]
[null,{"$f":"IF(VLOOKUP(Listas!$B$26,Listas!$M$2:$AZ$11,Listas!N25)=\"\",\"\",VLOOKUP(Listas!$B$26,Listas!$M$2:$AZ$11,Listas!N25))","v":"Joker #10"},{"$f":"IF(VLOOKUP(Listas!$B$26,Listas!$M$2:$AZ$11,Listas!O25)=\"\",\"\",VLOOKUP(Listas!$B$26,Listas!$M$2:$AZ$11,Listas!O25))","v":"47/05 ERJ: Steering rod"}]
[null,{"$f":"IF(VLOOKUP(Listas!$B$26,Listas!$M$2:$AZ$11,Listas!N26)=\"\",\"\",VLOOKUP(Listas!$B$26,Listas!$M$2:$AZ$11,Listas!N26))","v":"Joker #11"},{"$f":"IF(VLOOKUP(Listas!$B$26,Listas!$M$2:$AZ$11,Listas!O26)=\"\",\"\",VLOOKUP(Listas!$B$26,Listas!$M$2:$AZ$11,Listas!O26))","v":"49/06 ERJ: Fuel tank"}]
[null,{"$f":"IF(VLOOKUP(Listas!$B$26,Listas!$M$2:$AZ$11,Listas!N27)=\"\",\"\",VLOOKUP(Listas!$B$26,Listas!$M$2:$AZ$11,Listas!N27))","v":"Joker #12"},{"$f":"IF(VLOOKUP(Listas!$B$26,Listas!$M$2:$AZ$11,Listas!O27)=\"\",\"\",VLOOKUP(Listas!$B$26,Listas!$M$2:$AZ$11,Listas!O27))","v":"53/07 ERJ: Cylinderhead cover"}]
[null,{"$f":"IF(VLOOKUP(Listas!$B$26,Listas!$M$2:$AZ$11,Listas!N28)=\"\",\"\",VLOOKUP(Listas!$B$26,Listas!$M$2:$AZ$11,Listas!N28))","v":"Joker #13"},{"$f":"IF(VLOOKUP(Listas!$B$26,Listas!$M$2:$AZ$11,Listas!O28)=\"\",\"\",VLOOKUP(Listas!$B$26,Listas!$M$2:$AZ$11,Listas!O28))","v":"56/08 ERJ: Exhaust manifold thickness"}]

{"sheet":"Listas","index":1,"n_rows":37,"n_cols":48,"rows_kept":37,"cut":false,"hidden":true,"merged":[[0,12,0,45],[0,4,0,11],[0,0,0,1],[12,0,12,1],[1,4,1,5],[1,6,1,7],[1,8,1,9],[1,10,1,11]]}
["Vehículos R5 Homologados",null,"FOTOS",null,"JOKERs",null,null,null,null,null,null,null,"JOKERs"]
[1,"Ford Fiesta R5",1,null,"Ford Fiesta R5",null,"Citroën DS3 R5",null,"Peugeot 208 T16 R5",null,"Skoda Fabia R5",null,1,{"$f":"B2","v":"Ford Fiesta R5"},"Software","Software","Software","Joker #1","Joker #2","Joker #3","Joker #4","Joker #5","Joker #6","Joker #7","Joker #8","Joker #9","Joker #10","Joker #11",null,null,null,null,null,"02/01 VR5: 2.13.3 (1)","12/05 ER: 2.13.5 (1)","23/02 ERJ: 2.25.1.1","19/01 ERJ: Piston","19/01 ERJ: Flywheel + clutch","19/01 ERJ: Cylinder head","19/01 ERJ: Camshafts (I + E)","19/01 ERJ: Exhaust manifold","23/02 ERJ: Front wishbone","26/03 ERJ: Steering rod","28/04 ERJ: Cylinderhead","28/04 ERJ: Intake valve","28/04 ERJ: Exhaust manifold","39/05 ERJ: Steering system (Reliability)"]
[2,"Citroën DS3 R5",2,null,"Software","02/01 VR5 / 2.13.3 (1)","Software","06/01 VR5 / 10.7.9","Software","07/01 VR5 / 10.7.9","Software","01/01 VR5 (MM12451_AVL051)",2,{"$f":"B3","v":"Citroën DS3 R5"},"Software","Software","Software","Software","Joker #1","Joker #2","Joker #3","Joker #4","Joker #5","Joker #6","Joker #7","Joker #8","Joker #9","Joker #10","Joker #11",null,null,null,null,"06/01 VR5: 10.7.9","11/02 ER: 10.8.2","16/07 ER: 10.8.3","24/02 ERJ: 10.9.10","15/06 ER: Gearbox casing","23/01 ERJ: Engine cooling fan","23/01 ERJ: Alternator + engine block machining","23/01 ERJ: Power steering pump tank","24/02 ERJ: Radiator","24/02 ERJ: Water pump","24/02 ERJ: Intercooler","24/02 ERJ: Rear diff. ramp angles","24/02 ERJ: Power steering pump","28/03 ERJ: Power steering pump and water pump location","28/03 ERJ: Power steering radiator"]
[3,"Peugeot 208 T16 R5",3,null,"Software","12/05 ER / 2.13.5 (1)","Software","11/02 ER / 10.8.2","Software","12/01 ER / 10.8.2","Joker #1","13/01 ERJ / Crankshaft bearing caps",3,"Peugeot 208 T16 R5","Software","Software","Software","Software","Joker #1","Joker #2","Joker #3","Joker #4","Joker #5","Joker #6","Joker #7","Joker #8","Joker #9","Joker #10","Joker #11",null,null,null,null,"07/01 VR5: 10.7.9","12/01 ER: 10.8.2","18/06 ER: 10.8.3","31/02 ERJ: 10.9.10","17/05 ER: Gearbox casing","30/01 ERJ: Engine cooling fan","30/01 ERJ: Alternator + engine block machining","30/01 ERJ: Power steering pump tank","31/02 ERJ: Radiator","31/02 ERJ: Water pump","31/02 ERJ: Intercooler","31/02 ERJ: Rear diff. ramp angles","31/02 ERJ: Power steering pump","37/03 ERJ: Power steering pump and water pump location","37/03 ERJ: Power steering radiator"]
[4,"Skoda Fabia R5",4,null,"Joker #1","19/09 ER / Piston","Software","16/07 ER / 10.8.3","Software","18/06 ER / 10.8.3",null,null,4,"Skoda Fabia R5","Software","Software","Joker #1","Joker #2","Joker #3","Joker #4","Joker #5","Joker #6","Joker #7","Joker #8","Joker #9","Joker #10","Joker #11","Joker #12","Joker #13",null,null,null,null,"01/01 VR5: (MM12451_AVL051)","49/06 ERJ: Software (ECU:  MM12750_AVL090) (ELB: 1.3.0)","13/01 ERJ: Crankshaft bearing caps (reliability)","19/02 ERJ: ECU: MM127210_AVL061 / ELB: 1.3.0","32/03 ERJ: Engine support #1","33/04 ERJ: Front diff (reliability)","33/04 ERJ: Rear diff","47/05 ERJ: Removal of balancing shaft","47/05 ERJ: Piston","47/05 ERJ: Water pump drive system","47/05 ERJ: Oil pump","47/05 ERJ: Steering rod","49/06 ERJ: Fuel tank","53/07 ERJ: Cylinderhead cover","56/08 ERJ: Exhaust manifold thickness"]
[5,"Hyundai i20 R5",5,null,null,null,null,null,null,null,null,null,5,"Hyundai i20 R5","Software","Software","Joker #1","Joker #2","Joker #3","Joker #4","Joker #5","Joker #6","Joker #7","Joker #8","Joker #9","Joker #10","Joker #11","Joker #12",null,null,null,null,null,"01/01 VR5: 12.7.1.34","29/07 ERJ: ECU: 12.7.3.0 / ELB: 1.3.0","06/01 ERJ: ECU: 12.7.1.42 / ELB: 1.3.0","08/02 ERJ: Front wishbone (reliability)","14/03 ERJ: Activation of exhaust VVT system","19/04 ERJ: Rear subframe","19/04 ERJ: Rear wishbone/arm (reliability)","26/05 ERJ: Front shock absorber type 1","26/05 ERJ: Front shock absorber type 2","26/05 ERJ: Rear shock absorber type 1","26/05 ERJ: Rear shock absorber type 2","26/05 ERJ: Power steering pump tank","27/06 ERJ: Cylinder block & sleeves","27/06 ERJ: Piston"]
[6,"Citroën C3 R5",6,null,null,null,null,null,null,null,null,null,6,"Citroën C3 R5","Software","Software","Joker #1","Joker #2","Joker #3","Joker #4","Joker #5","Joker #6","Joker #7","Joker #8","Joker #9",null,null,null,null,null,null,null,null,"01/01 VR5: 12.10.3.4","23/03 ERJ: 14.2.2.22","15/01 ERJ: Rear whisbone / arm (reliability)","16/02 ERJ: Rear subframe","25/04 ERJ: Exhaust manifold (reliability)","26/05 ERJ: GMP support #1","26/05 ERJ: Drawing VI-D1","26/05 ERJ: Rear toe link pick up point","26/05 ERJ: Pedal box","26/05 ERJ: Front splitter lip + front bumper","27/06 ERJ: Front subframe"]
[7,"Volkswagen Polo GTi R5",7,null,null,null,null,null,null,null,null,null,7,"Volkswagen Polo GTi R5","Software","Joker #1","Joker #2","Joker #3","Joker #4","Joker #5","Joker #",null,null,null,null,null,null,null,null,null,null,null,null,"01/01 VR5: 0103_598_0052_0028","13/01 ERJ: Bare hub carrier","14/02 ERJ: Front fixation of the strut to the hub carrier","14/02 ERJ: Rear fixation of the strut to the hub carrier","17/03 ERJ: Front wishbone type 1 (reliability)","18/04 ERJ: Engine control system","20/05 ERJ: Piston (reliability)","22/06 ERJ: Windscreen wiper mechanism"]
[8,"Proton Iriz R5",8,null,null,null,null,null,null,null,null,null,8,"Proton Iriz R5","Software","Software",null,null,null,null,null,null,null,null,null,null,null,null,null,null,null,null,null,"01/01 VR5: V11-18(1)","10/05 ER: V11-18(5)"]
[9,"Skoda Fabia Rally2 EVO",9,null,null,null,null,null,null,null,null,null,9,"Skoda Fabia Rally2 EVO","Software","Software","Joker #1","Joker #2","Joker #3",null,null,null,null,null,null,null,null,null,null,null,null,null,null,"01/01 VR5: MM14000_AVL200","15/02 ERJ: MM14350_AVL250","12/01 ERJ: Exhaust manifold","12/01 ERJ: Intercooler","12/01 ERJ: Rear subframe (reliability)"]
[10,"Ford Fiesta Rally2 MKII",10,null,null,null,null,null,null,null,null,null,10,"Ford Fiesta Rally2 MKII","Software","Joker #1","Joker #2","Joker #3",null,null,null,null,null,null,null,null,null,null,null,null,null,null,null,"101/01 VR5: 2.75.1.1","115/01 ERJ: Engine bonnet","117/02 ERJ: Piston","118/03 ERJ: Rear differential unlocking system"]
[null,null,null,null,"Joker #2","19/09 ER / Flywheel + clutch","Joker #1","15/06 ER Gearbox casing","Joker #1","17/05 ER Gearbox casing"]
["FH y Extensiones",null,"Rallyes",null,"Joker #3","19/09 ER / Cylinder head","Joker #2","23/01 ERJ Engine cooling fan","Joker #2","30/01 ERJ Engine cooling fan",null,null,null,"Nº automatizar celdas Jokers","Nº automatizar celdas Jokers"]
[1,"A5748 - 02/01VR5","Seleccionar prueba S-CER, CERA o CERT",null,"Joker #4","19/09 ER / Camshafts (I + E)","Joker #3","23/01 ERJ Alternator + engine block machining","Joker #3","30/01 ERJ Alternator + engine block machining",null,null,null,3,22]
[2,"A5739 - 06/01VR5","S-CER",null,"Joker #5","19/09 ER / Exhaust manifold","Joker #4","23/01 ERJ / Power steering pump tank","Joker #4","30/01 ERJ / Power steering pump tank",null,null,null,4,23]
[3,"A5743 - 07/01VR5","Sierra Morena (A)",null,null,null,null,null,null,null,null,null,null,5,24]
[4,"A5760 - 01/01VR5","Tierras Altas de Lorca (T)",null,null,null,null,null,null,null,null,null,null,6,25]
[5,"A5766 - 01/01VR5","Villa de Adeje (A)",null,null,null,null,null,null,null,null,null,null,7,26]
[6,"A5773 - 01/01VR5","Terra da Auga (T)",null,null,null,null,null,null,null,null,null,null,8,27]
[7,"A5774 - 01/01VR5","Reino de León (T)",null,null,null,null,null,null,null,null,null,null,9,28]
[8,"A5776 - 01/01VR5","Ourense (A)",null,null,null,null,null,null,null,null,null,null,10,29]
[9,"A5777 - 01/01VR5","Ferrol (A)",null,null,null,null,null,null,null,null,null,null,11,30]
[10,"A5775 - 101/01VR5","Blendio Princesa de Asturias (A)",null,null,null,null,null,null,null,null,null,null,12,31]
[null,null,"Villa de Llanes (A)",null,null,null,null,null,null,null,null,null,null,13,32]
[null,3,"Tierra de Madrid (T)",null,null,null,null,null,null,null,null,null,null,14,33]
[null,{"$f":"B25+1","v":4},"Ciudad de Pozoblanco (T)",null,null,null,null,null,null,null,null,null,null,15,34]
[null,null,"La Nucía (A)",null,null,null,null,null,null,null,null,null,null,16,35]
[null,null,"Islas Canarias (A)",null,null,null,null,null,null,null,null,null,null,17,36]
[null,null,"CERA",null,null,null,null,null,null,null,null,null,null,18,37]
[null,null,"Botafumeiro",null,null,null,null,null,null,null,null,null,null,19,38]
[null,null,"Rías Bajas",null,null,null,null,null,null,null,null,null,null,20,39]
[null,null,"Narón",null,null,null,null,null,null,null,null,null,null,21,40]
[null,null,"Memorial Cristián López",null,null,null,null,null,null,null,null,null,null,22,41]
[null,null,"Cocido"]
[null,null,"CERT"]
[null,null,"Isla de Lanzarote (T)"]
[null,null,"Ciudad de Granada (T)"]